fUSD/lending_fUSD_20250221
["ID","MTS","AMOUNT","RATE_DAILY","PERIOD"]
[353982555,1740172300650,-614.9,0.00012682,2]
[353982556,1740172300659,-1151.83,0.00012682,2]
[353982557,1740172300668,-811.74,0.00012682,2]
[353982558,1740172300678,-1450.82,0.00012682,2]
[353982559,1740172300687,-1170.09,0.00012682,2]
[353982560,1740172300696,-581.06765083,0.00012682,2]
[353982561,1740172300706,-500.0,0.00012682,2]
[353982562,1740172300715,-1737.05,0.00012682,2]
[353982563,1740172300723,-897.28,0.00012682,2]
[353982564,1740172300732,-500.0,0.00012682,2]
[353982565,1740172300742,-853.87,0.00012682,2]
[353982566,1740172300751,-638.91,0.00012682,2]
[353982567,1740172300763,-511.08,0.00012682,2]
[353982568,1740172300772,-1229.62,0.00012682,2]
[353982569,1740172300782,-580.46,0.00012682,2]
[353982570,1740172300791,-1513.79,0.00012682,2]
[353982571,1740172300800,-1136.08,0.00012682,2]
[353982572,1740172300810,-794.55,0.00012682,2]
[353982573,1740172300819,-1175.93,0.00012682,2]
[353982574,1740172300828,-500.0,0.00012682,2]
[353982575,1740172300837,-987.72,0.00012682,2]
[353982576,1740172300846,-731.97,0.00012682,2]
[353982577,1740172300855,-1199.69,0.00012682,2]
[353982578,1740172300864,-1172.47,0.00012682,2]
[353982579,1740172300873,-2284.05,0.00012682,2]
[353982580,1740172300882,-5314.28,0.00012682,2]
[353982581,1740172300891,-1158.45,0.00012682,2]
[353982582,1740172300900,-588.49,0.00012682,2]
[353982583,1740172300909,-500.0,0.00012682,2]
[353982584,1740172300919,-1637.66,0.00012682,2]
[353982585,1740172300929,-1092.4,0.00012682,2]
[353982586,1740172300937,-170.990071,0.00012682,2]
[353982587,1740172300947,-1130.79,0.00012682,2]
[353982588,1740172300956,-589.95,0.00012682,2]
[353982589,1740172300965,-961.8,0.00012682,2]
[353982590,1740172300974,-839.71,0.00012682,2]
[353982591,1740172300983,-500.0,0.00012682,2]
[353982592,1740172300993,-597.77,0.00012682,2]
[353982593,1740172301002,-863.56,0.00012682,2]
[353982594,1740172301013,-2270.11,0.00012682,2]
[353982595,1740172301022,-2553.24,0.00012682,2]
[353982596,1740172301032,-226.55724558,0.00012682,2]
[353982597,1740172301042,-519.67,0.00012683,2]
[353982598,1740172301052,-612.3226427,0.00012683,2]
[353982599,1740172301061,-151.0,0.00012684,2]
[353982600,1740172301070,-301.73,0.00012685,2]
[353982601,1740172301080,-485.84,0.00012746,2]
[353982602,1740172301089,-500.0,0.00012763,2]
[353982603,1740172301098,-649.82,0.00012763,2]
[353982604,1740172301108,-622.03,0.00012763,2]
[353982605,1740172301117,-1075.7,0.00012763,2]
[353982606,1740172301127,-855.71,0.00012763,2]
[353982607,1740172301136,-1013.9,0.00012763,2]
[353982608,1740172301145,-1231.28,0.00012763,2]
[353982609,1740172301154,-769.3,0.00012763,2]
[353982610,1740172301163,-916.53,0.00012763,2]
[353982611,1740172301172,-1480.7,0.00012763,2]
[353982612,1740172301181,-1452.9,0.00012763,2]
[353982613,1740172301191,-1092.95,0.00012763,2]
[353982614,1740172301202,-761.8,0.00012763,2]
[353982615,1740172301211,-931.16,0.00012763,2]
[353982616,1740172301220,-1001.35,0.00012763,2]
[353982617,1740172301232,-2093.79,0.00012763,2]
[353982618,1740172301244,-591.75,0.00012763,2]
[353982619,1740172301253,-757.37,0.00012763,2]
[353982620,1740172301266,-1067.6,0.00012763,2]
[353982621,1740172301276,-1427.11,0.00012763,2]
[353982622,1740172301286,-969.96,0.00012763,2]
[353982623,1740172301295,-782.56,0.00012763,2]
[353982624,1740172301305,-842.52,0.00012763,2]
[353982625,1740172301315,-830.72,0.00012763,2]
[353982626,1740172301324,-663.66,0.00012763,2]
[353982627,1740172301334,-538.49,0.00012764,2]
[353982628,1740172301344,-691.94,0.00012764,2]
[353982629,1740172301353,-644.17,0.00012764,2]
[353982630,1740172301363,-667.56,0.00012764,2]
[353982631,1740172301372,-756.41,0.00012764,2]
[353982632,1740172301382,-651.32,0.00012764,2]
[353982633,1740172301391,-384.33598515,0.00012764,2]
[353982634,1740172301400,-500.0,0.00012764,2]
[353982635,1740172301410,-552.92,0.00012764,2]
[353982636,1740172301422,-664.1,0.00012764,2]
[353982637,1740172301431,-500.0,0.00012764,2]
[353982638,1740172301440,-641.81,0.00012764,2]
[353982639,1740172301450,-529.44,0.00012764,2]
[353982640,1740172301462,-580.98,0.00012764,2]
[353982641,1740172301471,-656.48,0.00012764,2]
[353982642,1740172301480,-500.0,0.00012764,2]
[353982643,1740172301490,-645.51,0.00012764,2]
[353982644,1740172301500,-875.23,0.00012764,2]
[353982645,1740172301511,-819.32,0.00012764,2]
[353982646,1740172301520,-514.61,0.00012764,2]
[353982647,1740172301530,-681.73,0.00012764,2]
[353982648,1740172301539,-416.58414474,0.00012764,2]
[353982649,1740172301549,-773.23,0.00012764,2]
[353982650,1740172301558,-158.02869672,0.00012764,2]
[353982651,1740172301568,-193.607216,0.00012764,2]
[353982652,1740172301577,-760.5,0.00012764,2]
[353982653,1740172301586,-565.11,0.00012764,2]
[353982654,1740172301595,-703.17,0.00012764,2]
[353982655,1740172301604,-500.0,0.00012764,2]
[353982656,1740172301615,-709.63,0.00012764,2]
[353982657,1740172301626,-562.69,0.00012764,2]
[353982658,1740172301635,-696.24,0.00012764,2]
[353982659,1740172301645,-567.21,0.00012764,2]
[353982660,1740172301655,-694.16,0.00012764,2]
[353982661,1740172301664,-678.43,0.00012764,2]
[353982662,1740172301674,-690.55,0.00012764,2]
[353982663,1740172301684,-300.76648654,0.00012764,2]
[353982664,1740172301692,-663.28,0.00012764,2]
[353982665,1740172301703,-996.53,0.00012764,2]
[353982666,1740172301712,-731.38,0.00012764,2]
[353982667,1740172301722,-643.91,0.00012764,2]
[353982668,1740172301732,-731.06,0.00012764,2]
[353982669,1740172301742,-500.0,0.00012764,2]
[353982670,1740172301752,-710.81,0.00012764,2]
[353982671,1740172301762,-500.6,0.00012764,2]
[353982672,1740172301772,-624.32,0.00012764,2]
[353982673,1740172301782,-595.44,0.00012764,2]
[353982674,1740172301792,-751.36,0.00012764,2]
[353982675,1740172301801,-636.57,0.00012764,2]
[353982676,1740172301811,-500.0,0.00012764,2]
[353982677,1740172301821,-893.82,0.00012764,2]
[353982678,1740172301831,-174.831552,0.00012764,2]
[353982679,1740172301841,-587.07,0.00012764,2]
[353982680,1740172301850,-1704.14,0.00012764,2]
[353982681,1740172301859,-870.24,0.00012764,2]
[353982682,1740172301869,-523.06,0.00012764,2]
[353982683,1740172301879,-1140.49,0.00012764,2]
[353982684,1740172301889,-1885.94,0.00012764,2]
[353982685,1740172301899,-762.29,0.00012764,2]
[353982686,1740172301909,-985.36,0.00012764,2]
[353982687,1740172301918,-1329.74,0.00012764,2]
[353982688,1740172301928,-1050.0,0.00012764,2]
[353982689,1740172302115,-841.39,0.00012764,2]
[353982690,1740172302129,-1478.11,0.00012764,2]
[353982691,1740172302138,-1687.94,0.00012764,2]
[353982692,1740172302147,-1236.11,0.00012764,2]
[353982693,1740172302157,-527.93,0.00012764,2]
[353982694,1740172302166,-836.59,0.00012764,2]
[353982695,1740172302176,-1031.57,0.00012764,2]
[353982696,1740172302186,-1035.44,0.00012764,2]
[353982697,1740172302196,-1245.12,0.00012764,2]
[353982698,1740172302206,-1117.96,0.00012764,2]
[353982699,1740172302215,-1068.45,0.00012764,2]
[353982700,1740172302225,-1183.89,0.00012764,2]
[353982701,1740172302235,-1056.87,0.00012764,2]
[353982702,1740172302244,-5637.87,0.00012764,2]
[353982703,1740172302253,-559.58,0.00012764,2]
[353982704,1740172302264,-797.09,0.00012764,2]
[353982705,1740172302273,-1352.53,0.00012764,2]
[353982706,1740172302283,-739.7,0.00012764,2]
[353982707,1740172302292,-1479.65,0.00012764,2]
[353982708,1740172302302,-896.66,0.00012764,2]
[353982709,1740172302311,-2215.1,0.00012764,2]
[353982710,1740172302321,-1219.06,0.00012764,2]
[353982711,1740172302330,-1253.82,0.00012764,2]
[353982712,1740172302339,-1134.86,0.00012764,2]
[353982713,1740172302349,-1523.22,0.00012764,2]
[353982714,1740172302358,-1190.42,0.00012764,2]
[353982715,1740172302369,-942.8,0.00012764,2]
[353982716,1740172302380,-305.38676873,0.00012764,2]
[353982717,1740172302389,-579.37,0.00012764,2]
[353982718,1740172302398,-1258.98,0.00012764,2]
[353982719,1740172302408,-1291.85,0.00012764,2]
[353982720,1740172302419,-661.23,0.00012764,2]
[353982721,1740172302431,-1149.69,0.00012764,2]
[353982722,1740172302440,-2660.4,0.00012764,2]
[353982723,1740172302449,-1991.69,0.00012764,2]
[353982724,1740172302459,-614.9,0.00012764,2]
[353982725,1740172302468,-1151.83,0.00012764,2]
[353982726,1740172302477,-811.74,0.00012764,2]
[353982727,1740172302486,-1450.82,0.00012764,2]
[353982728,1740172302495,-1170.09,0.00012764,2]
[353982729,1740172302505,-500.0,0.00012764,2]
[353982730,1740172302515,-1737.05,0.00012764,2]
[353982731,1740172302524,-897.28,0.00012764,2]
[353982732,1740172302534,-555.92556643,0.00012764,2]
[353982733,1740172302543,-853.87,0.00012764,2]
[353982734,1740172302551,-638.91,0.00012764,2]
[353982735,1740172302561,-511.08,0.00012764,2]
[353982736,1740172302570,-1229.62,0.00012764,2]
[353982737,1740172302580,-580.46,0.00012764,2]
[353982738,1740172302589,-1513.79,0.00012764,2]
[353982739,1740172302598,-1136.08,0.00012764,2]
[353982740,1740172302607,-794.55,0.00012764,2]
[353982741,1740172302616,-1175.93,0.00012764,2]
[353982742,1740172302625,-500.0,0.00012764,2]
[353982743,1740172302635,-987.72,0.00012764,2]
[353982744,1740172302644,-731.97,0.00012764,2]
[353982745,1740172302653,-1199.69,0.00012764,2]
[353982746,1740172302662,-1172.47,0.00012764,2]
[353982747,1740172302671,-2284.05,0.00012764,2]
[353982748,1740172302681,-5314.28,0.00012764,2]
[353982749,1740172302690,-1158.45,0.00012764,2]
[353982750,1740172302699,-588.49,0.00012764,2]
[353982751,1740172302709,-500.0,0.00012764,2]
[353982752,1740172302718,-1637.66,0.00012764,2]
[353982753,1740172302728,-1092.4,0.00012764,2]
[353982754,1740172302737,-1130.79,0.00012764,2]
[353982755,1740172302747,-589.95,0.00012764,2]
[353982756,1740172302756,-961.8,0.00012764,2]
[353982757,1740172302766,-839.71,0.00012764,2]
[353982758,1740172302776,-500.0,0.00012764,2]
[353982759,1740172302785,-597.77,0.00012764,2]
[353982760,1740172302794,-863.56,0.00012764,2]
[353982761,1740172302803,-2270.11,0.00012764,2]
[353982762,1740172302813,-2553.24,0.00012764,2]
[353982763,1740172302822,-519.67,0.00012765,2]
[353982764,1740172302832,-715.95,0.00012791,2]
[353982765,1740172302841,-200.0,0.000128,4]
[353982766,1740172302850,-151.0,0.00012832,2]
[353982767,1740172302860,-1274.0,0.00012832,2]
[353982768,1740172302870,-2027.0,0.00012832,2]
[353982769,1740172302880,-569.0,0.00012832,2]
[353982770,1740172302890,-639.0,0.00012832,2]
[353982771,1740172302900,-150.0,0.00012832,2]
[353982772,1740172302910,-538.49,0.00012846,2]
[353982773,1740172302920,-691.94,0.00012846,2]
[353982774,1740172302930,-644.17,0.00012846,2]
[353982775,1740172302940,-667.56,0.00012846,2]
[353982776,1740172302950,-756.41,0.00012846,2]
[353982777,1740172302959,-651.32,0.00012846,2]
[353982778,1740172302969,-500.0,0.00012846,2]
[353982779,1740172302979,-552.92,0.00012846,2]
[353982780,1740172302988,-664.1,0.00012846,2]
[353982781,1740172302998,-289.17948529,0.00012846,2]
[353982782,1740172303009,-641.81,0.00012846,2]
[353982783,1740172303019,-529.44,0.00012846,2]
[353982784,1740172303029,-580.98,0.00012846,2]
[353982785,1740172303039,-656.48,0.00012846,2]
[353982786,1740172303048,-488.68654149,0.00012846,2]
[353982787,1740172303058,-645.51,0.00012846,2]
[353982788,1740172303067,-875.23,0.00012846,2]
[353982789,1740172303077,-819.32,0.00012846,2]
[353982790,1740172303086,-514.61,0.00012846,2]
[353982791,1740172303096,-681.73,0.00012846,2]
[353982792,1740172303106,-773.23,0.00012846,2]
[353982793,1740172303116,-193.607216,0.00012846,2]
[353982794,1740172303125,-760.5,0.00012846,2]
[353982795,1740172303135,-565.11,0.00012846,2]
[353982796,1740172303145,-703.17,0.00012846,2]
[353982797,1740172303154,-500.0,0.00012846,2]
[353982798,1740172303164,-709.63,0.00012846,2]
[353982799,1740172303173,-562.69,0.00012846,2]
[353982800,1740172303183,-696.24,0.00012846,2]
[353982801,1740172303193,-567.21,0.00012846,2]
[353982802,1740172303202,-694.16,0.00012846,2]
[353982803,1740172303212,-678.43,0.00012846,2]
[353982804,1740172303222,-690.55,0.00012846,2]
[353982805,1740172303231,-151.0,0.00012846,2]
[353982806,1740172303241,-663.28,0.00012846,2]
[353982807,1740172303251,-996.53,0.00012846,2]
[353982808,1740172303261,-731.38,0.00012846,2]
[353982809,1740172303271,-643.91,0.00012846,2]
[353982810,1740172303280,-731.06,0.00012846,2]
[353982811,1740172303290,-314.63598996,0.00012846,2]
[353982812,1740172303300,-710.81,0.00012846,2]
[353982813,1740172303309,-500.6,0.00012846,2]
[353982814,1740172303318,-624.32,0.00012846,2]
[353982815,1740172303328,-595.44,0.00012846,2]
[353982816,1740172303338,-751.36,0.00012846,2]
[353982817,1740172303348,-636.57,0.00012846,2]
[353982818,1740172303358,-282.99072381,0.00012846,2]
[353982819,1740172303367,-893.82,0.00012846,2]
[353982820,1740172303377,-174.831552,0.00012846,2]
[353982821,1740172303386,-587.07,0.00012846,2]
[353982822,1740172303396,-1704.14,0.00012846,2]
[353982823,1740172303405,-870.24,0.00012846,2]
[353982824,1740172303417,-523.06,0.00012846,2]
[353982825,1740172303429,-1140.49,0.00012846,2]
[353982826,1740172303439,-1885.94,0.00012846,2]
[353982827,1740172303448,-762.29,0.00012846,2]
[353982828,1740172303458,-985.36,0.00012846,2]
[353982829,1740172303467,-1329.74,0.00012846,2]
[353982830,1740172303477,-1050.0,0.00012846,2]
[353982831,1740172303486,-841.39,0.00012846,2]
[353982832,1740172303496,-1478.11,0.00012846,2]
[353982833,1740172303506,-1687.94,0.00012846,2]
[353982834,1740172303519,-1236.11,0.00012846,2]
[353982835,1740172303528,-527.93,0.00012846,2]
[353982836,1740172303537,-836.59,0.00012846,2]
[353982837,1740172303547,-1031.57,0.00012846,2]
[353982838,1740172303556,-1035.44,0.00012846,2]
[353982839,1740172303566,-1245.12,0.00012846,2]
[353982840,1740172303576,-1117.96,0.00012846,2]
[353982841,1740172303585,-1068.45,0.00012846,2]
[353982842,1740172303595,-1183.89,0.00012846,2]
[353982843,1740172303605,-1056.87,0.00012846,2]
[353982844,1740172303614,-5637.87,0.00012846,2]
[353982845,1740172303624,-559.58,0.00012846,2]
[353982846,1740172303633,-797.09,0.00012846,2]
[353982847,1740172303642,-1352.53,0.00012846,2]
[353982848,1740172303652,-739.7,0.00012846,2]
[353982849,1740172303661,-1479.65,0.00012846,2]
[353982850,1740172303671,-896.66,0.00012846,2]
[353982851,1740172303680,-2215.1,0.00012846,2]
[353982852,1740172303689,-1219.06,0.00012846,2]
[353982853,1740172303698,-1253.82,0.00012846,2]
[353982854,1740172303707,-1134.86,0.00012846,2]
[353982855,1740172303716,-1523.22,0.00012846,2]
[353982856,1740172303726,-1190.42,0.00012846,2]
[353982857,1740172303735,-942.8,0.00012846,2]
[353982858,1740172303745,-411.22,0.00012846,2]
[353982859,1740172303755,-579.37,0.00012846,2]
[353982860,1740172303765,-1258.98,0.00012846,2]
[353982861,1740172303775,-1291.85,0.00012846,2]
[353982862,1740172303784,-661.23,0.00012846,2]
[353982863,1740172303794,-1149.69,0.00012846,2]
[353982864,1740172303803,-649.82,0.00012846,2]
[353982865,1740172303812,-2660.4,0.00012846,2]
[353982866,1740172303822,-1991.69,0.00012846,2]
[353982867,1740172303831,-622.03,0.00012846,2]
[353982868,1740172303841,-614.9,0.00012846,2]
[353982869,1740172303851,-1151.83,0.00012846,2]
[353982870,1740172303861,-1075.7,0.00012846,2]
[353982871,1740172303870,-811.74,0.00012846,2]
[353982872,1740172303879,-855.71,0.00012846,2]
[353982873,1740172303891,-1450.82,0.00012846,2]
[353982874,1740172303900,-1170.09,0.00012846,2]
[353982875,1740172303910,-1013.9,0.00012846,2]
[353982876,1740172303919,-500.0,0.00012846,2]
[353982877,1740172303928,-1231.28,0.00012846,2]
[353982878,1740172303938,-1737.05,0.00012846,2]
[353982879,1740172303948,-897.28,0.00012846,2]
[353982880,1740172303957,-769.3,0.00012846,2]
[353982881,1740172303967,-853.87,0.00012846,2]
[353982882,1740172303977,-638.91,0.00012846,2]
[353982883,1740172303986,-916.53,0.00012846,2]
[353982884,1740172303996,-511.08,0.00012846,2]
[353982885,1740172304006,-1480.7,0.00012846,2]
[353982886,1740172304017,-1229.62,0.00012846,2]
[353982887,1740172304026,-1452.9,0.00012846,2]
[353982888,1740172304036,-580.46,0.00012846,2]
[353982889,1740172304045,-1513.79,0.00012846,2]
[353982890,1740172304054,-1136.08,0.00012846,2]
[353982891,1740172304063,-794.55,0.00012846,2]
[353982892,1740172304075,-1092.95,0.00012846,2]
[353982893,1740172304084,-761.8,0.00012846,2]
[353982894,1740172304106,-1175.93,0.00012846,2]
[353982895,1740172304115,-634.50508576,0.00012846,2]
[353982896,1740172304125,-931.16,0.00012846,2]
[353982897,1740172304135,-987.72,0.00012846,2]
[353982898,1740172304144,-731.97,0.00012846,2]
[353982899,1740172304153,-1001.35,0.00012846,2]
[353982900,1740172304163,-1199.69,0.00012846,2]
[353982901,1740172304173,-1172.47,0.00012846,2]
[353982902,1740172304183,-2093.79,0.00012846,2]
[353982903,1740172304192,-2284.05,0.00012846,2]
[353982904,1740172304203,-5314.28,0.00012846,2]
[353982905,1740172304212,-591.75,0.00012846,2]
[353982906,1740172304222,-757.37,0.00012846,2]
[353982907,1740172304231,-1158.45,0.00012846,2]
[353982908,1740172304241,-588.49,0.00012846,2]
[353982909,1740172304250,-321.53150823,0.00012846,2]
[353982910,1740172304259,-1067.6,0.00012846,2]
[353982911,1740172304271,-1637.66,0.00012846,2]
[353982912,1740172304279,-1092.4,0.00012846,2]
[353982913,1740172304289,-1130.79,0.00012846,2]
[353982914,1740172304298,-589.95,0.00012846,2]
[353982915,1740172304307,-961.8,0.00012846,2]
[353982916,1740172304316,-1427.11,0.00012846,2]
[353982917,1740172304325,-839.71,0.00012846,2]
[353982918,1740172304334,-969.96,0.00012846,2]
[353982919,1740172304343,-782.56,0.00012846,2]
[353982920,1740172304353,-500.0,0.00012846,2]
[353982921,1740172304362,-597.77,0.00012846,2]
[353982922,1740172304371,-863.56,0.00012846,2]
[353982923,1740172304380,-2270.11,0.00012846,2]
[353982924,1740172304390,-842.52,0.00012846,2]
[353982925,1740172304399,-2553.24,0.00012846,2]
[353982926,1740172304409,-830.72,0.00012846,2]
[353982927,1740172304420,-663.66,0.00012846,2]
[353982928,1740172304431,-519.67,0.00012847,2]
[353982929,1740172304440,-4000.0,0.0001285,2]
[353982930,1740172304449,-1000.0,0.0001285,2]
[353982931,1740172304459,-999.99,0.00012893,2]
[353982932,1740172304469,-63737.44,0.00012893,2]
[353982933,1740172304478,-3007.68,0.00012893,2]
[353982934,1740172304487,-2415.59,0.00012893,2]
[353982935,1740172304497,-150.99,0.00012893,2]
[353982936,1740172304507,-329.47,0.00012893,2]
[353982937,1740172304573,-9999.99,0.00012893,2]
[353982938,1740172304582,-150.99,0.00012893,2]
[353982939,1740172304591,-10010.93,0.00012893,2]
[353982940,1740172304600,-1386.23,0.00012893,2]
[353982941,1740172304609,-9999.99,0.00012893,2]
[353982942,1740172304619,-9999.99,0.00012893,2]
[353982943,1740172304628,-299.99,0.00012893,2]
[353982944,1740172304637,-200.0,0.000129,4]
[353982945,1740172304646,-715.95,0.00012928,2]
[353982946,1740172304655,-649.99684105,0.00012928,2]
[353982947,1740172304664,-622.17,0.00012928,2]
[353982948,1740172304673,-1075.81530843,0.00012928,2]
[353982949,1740172304682,-855.87023164,0.00012928,2]
[353982950,1740172304691,-1014.12514355,0.00012928,2]
[353982951,1740172304699,-1231.50576859,0.00012928,2]
[353982952,1740172304708,-769.42496079,0.00012928,2]
[353982953,1740172304717,-916.61380539,0.00012928,2]
[353982954,1740172304727,-1480.74434165,0.00012928,2]
[353982955,1740172304735,-1453.00319376,0.00012928,2]
[353982956,1740172304744,-1093.10745431,0.00012928,2]
[353982957,1740172304753,-761.95370422,0.00012928,2]
[353982958,1740172304762,-931.18676109,0.00012928,2]
[353982959,1740172304771,-1001.38067702,0.00012928,2]
[353982960,1740172304780,-2093.79730806,0.00012928,2]
[353982961,1740172304789,-591.7883914,0.00012928,2]
[353982962,1740172304798,-757.41540006,0.00012928,2]
[353982963,1740172304808,-1067.80909586,0.00012928,2]
[353982964,1740172304817,-1427.27947344,0.00012928,2]
[353982965,1740172304826,-970.14456296,0.00012928,2]
[353982966,1740172304835,-782.62426475,0.00012928,2]
[353982967,1740172304844,-842.70969592,0.00012928,2]
[353982968,1740172304854,-830.78998882,0.00012928,2]
[353982969,1740172304863,-663.83,0.00012928,2]
[353982970,1740172304873,-151.0,0.00012929,2]
[353982971,1740172304883,-538.62365866,0.00012929,2]
[353982972,1740172304893,-691.99774469,0.00012929,2]
[353982973,1740172304903,-644.32236249,0.00012929,2]
[353982974,1740172304912,-667.77,0.00012929,2]
[353982975,1740172304921,-756.48258064,0.00012929,2]
[353982976,1740172304931,-651.40686991,0.00012929,2]
[353982977,1740172304940,-358.00650267,0.00012929,2]
[353982978,1740172304950,-553.08627324,0.00012929,2]
[353982979,1740172304959,-664.2944885,0.00012929,2]
[353982980,1740172304968,-641.9774314,0.00012929,2]
[353982981,1740172304977,-529.46315079,0.00012929,2]
[353982982,1740172304987,-581.07484395,0.00012929,2]
[353982983,1740172304997,-656.62100378,0.00012929,2]
[353982984,1740172305006,-645.66495441,0.00012929,2]
[353982985,1740172305016,-875.43968739,0.00012929,2]
[353982986,1740172305025,-819.50078405,0.00012929,2]
[353982987,1740172305035,-514.70463346,0.00012929,2]
[353982988,1740172305044,-578.54697305,0.00012929,2]
[353982989,1740172305288,-103.20307596,0.00012929,2]
[353982990,1740172305298,-773.24581492,0.00012929,2]
[353982991,1740172305307,-193.607216,0.00012929,2]
[353982992,1740172305316,-760.52411308,0.00012929,2]
[353982993,1740172305326,-565.31551285,0.00012929,2]
[353982994,1740172305335,-744.518321,0.00012929,2]
[353982995,1740172305345,-744.518323,0.00012929,2]
[353982996,1740172305354,-703.21847322,0.00012929,2]
[353982997,1740172305363,-324.92268017,0.00012929,2]
[353982998,1740172305373,-709.78052019,0.00012929,2]
[353982999,1740172305382,-562.70261808,0.00012929,2]
[353983000,1740172305391,-696.46,0.00012929,2]
[353983001,1740172305400,-567.38039882,0.00012929,2]
[353983002,1740172305410,-694.19030913,0.00012929,2]
[353983003,1740172305421,-678.538072,0.00012929,2]
[353983004,1740172305430,-690.55365158,0.00012929,2]
[353983005,1740172305439,-663.38452453,0.00012929,2]
[353983006,1740172305448,-996.59,0.00012929,2]
[353983007,1740172305458,-731.47497933,0.00012929,2]
[353983008,1740172305467,-644.12242459,0.00012929,2]
[353983009,1740172305477,-731.22914858,0.00012929,2]
[353983010,1740172305486,-710.83910638,0.00012929,2]
[353983011,1740172305497,-500.63797155,0.00012929,2]
[353983012,1740172305506,-624.38489328,0.00012929,2]
[353983013,1740172305516,-595.50231323,0.00012929,2]
[353983014,1740172305526,-751.45584097,0.00012929,2]
[353983015,1740172305535,-636.80250085,0.00012929,2]
[353983016,1740172305544,-894.04964404,0.00012929,2]
[353983017,1740172305554,-174.831552,0.00012929,2]
[353983018,1740172305563,-587.27905598,0.00012929,2]
[353983019,1740172305573,-1704.17772385,0.00012929,2]
[353983020,1740172305583,-870.24,0.00012929,2]
[353983021,1740172305592,-523.13204043,0.00012929,2]
[353983022,1740172305601,-1140.65628932,0.00012929,2]
[353983023,1740172305610,-1886.14351559,0.00012929,2]
[353983024,1740172305620,-762.37724303,0.00012929,2]
[353983025,1740172305629,-1329.84320894,0.00012929,2]
[353983026,1740172305638,-985.36,0.00012929,2]
[353983027,1740172305647,-1050.10358094,0.00012929,2]
[353983028,1740172305656,-841.39560706,0.00012929,2]
[353983029,1740172305665,-1478.26482181,0.00012929,2]
[353983030,1740172305674,-1687.96729859,0.00012929,2]
[353983031,1740172305682,-1236.11,0.00012929,2]
[353983032,1740172305690,-528.07615675,0.00012929,2]
[353983033,1740172305699,-836.66357954,0.00012929,2]
[353983034,1740172305708,-1031.57535139,0.00012929,2]
[353983035,1740172305718,-1035.50698112,0.00012929,2]
[353983036,1740172305727,-1245.22333598,0.00012929,2]
[353983037,1740172305736,-1117.96,0.00012929,2]
[353983038,1740172305745,-1068.65986492,0.00012929,2]
[353983039,1740172305755,-1183.92985894,0.00012929,2]
[353983040,1740172305765,-1057.09990591,0.00012929,2]
[353983041,1740172305774,-5637.93632223,0.00012929,2]
[353983042,1740172305783,-559.58,0.00012929,2]
[353983043,1740172305792,-797.15,0.00012929,2]
[353983044,1740172305801,-1352.69419306,0.00012929,2]
[353983045,1740172305810,-739.91471019,0.00012929,2]
[353983046,1740172305819,-1479.88397875,0.00012929,2]
[353983047,1740172305828,-896.80365676,0.00012929,2]
[353983048,1740172305837,-2215.1,0.00012929,2]
[353983049,1740172305846,-1219.28154939,0.00012929,2]
[353983050,1740172305855,-1253.96801231,0.00012929,2]
[353983051,1740172305864,-1134.88838481,0.00012929,2]
[353983052,1740172305873,-1523.3143393,0.00012929,2]
[353983053,1740172305882,-1190.60832127,0.00012929,2]
[353983054,1740172305893,-942.83079459,0.00012929,2]